[Event "Early-Titled-Tuesday-Blitz-February-06-2024"]
[Site "Chess.com"]
[Date "2024.02.06"]
[Round "1"]
[White "Qingdom"]
[Black "DishonorOnYourCow"]
[Result "0-1"]
[WhiteElo "2042"]
[BlackElo "2554"]
[TimeControl "180+1"]
[EndTime "8:05:30 PST"]
[Termination "DishonorOnYourCow won by resignation"]

1. d4 {[%clk 0:03:00.9]} 1... Nf6 {[%clk 0:02:59.3]} 2. Bg5 {[%clk 0:03:00.2]}
2... Ne4 {[%clk 0:02:58.1]} 3. Bf4 {[%clk 0:03:00.1]} 3... d5 {[%clk 0:02:57.8]}
4. f3 {[%clk 0:02:59.5]} 4... Nf6 {[%clk 0:02:57.6]} 5. e4 {[%clk 0:02:59.6]}
5... dxe4 {[%clk 0:02:57.5]} 6. Nc3 {[%clk 0:02:59.8]} 6... e3 {[%clk
0:02:57.6]} 7. Bxe3 {[%clk 0:02:59.5]} 7... e6 {[%clk 0:02:57.4]} 8. Bc4 {[%clk
0:02:58.1]} 8... Bd6 {[%clk 0:02:54.6]} 9. Qd2 {[%clk 0:02:57.7]} 9... O-O
{[%clk 0:02:54.2]} 10. O-O-O {[%clk 0:02:57.6]} 10... a6 {[%clk 0:02:53.8]} 11.
g4 {[%clk 0:02:55.7]} 11... b5 {[%clk 0:02:51.9]} 12. Bd3 {[%clk 0:02:56.1]}
12... Bb7 {[%clk 0:02:45.6]} 13. h4 {[%clk 0:02:53.7]} 13... Nbd7 {[%clk
0:02:38.1]} 14. Ne4 {[%clk 0:02:46.6]} 14... Nxe4 {[%clk 0:02:32.6]} 15. fxe4
{[%clk 0:02:45.1]} 15... Qe7 {[%clk 0:02:29.3]} 16. e5 {[%clk 0:02:40.8]} 16...
Bb4 {[%clk 0:02:28.1]} 17. c3 {[%clk 0:02:40.4]} 17... Bxh1 {[%clk 0:02:25.3]}
18. cxb4 {[%clk 0:02:40.6]} 18... Bd5 {[%clk 0:02:23.4]} 19. g5 {[%clk
0:02:35.2]} 19... a5 {[%clk 0:02:15.8]} 20. bxa5 {[%clk 0:02:19.8]} 20... b4
{[%clk 0:02:15.5]} 21. Bb1 {[%clk 0:02:10.2]} 21... Rxa5 {[%clk 0:02:14.1]} 22.
Qd3 {[%clk 0:02:10.4]} 22... g6 {[%clk 0:02:11.2]} 23. h5 {[%clk 0:02:09.3]}
23... Bxa2 {[%clk 0:02:06.1]} 24. hxg6 {[%clk 0:02:07.3]} 24... fxg6 {[%clk
0:02:04.3]} 25. Nh3 {[%clk 0:01:57.4]} 25... Bxb1 {[%clk 0:02:02.1]} 26. Kxb1
{[%clk 0:01:55.4]} 26... Rfa8 {[%clk 0:02:02.4]} 27. Kc2 {[%clk 0:01:53]} 27...
Nb6 {[%clk 0:01:51.9]} 28. Nf4 {[%clk 0:01:51.2]} 28... Nd5 {[%clk 0:01:51.7]}
29. Nxg6 {[%clk 0:01:50.4]} 29... Nxe3+ {[%clk 0:01:47.9]} 30. Qxe3 {[%clk
0:01:48.6]} 30... hxg6 {[%clk 0:01:47.5]} 31. Rf1 {[%clk 0:01:47.5]} 31... Rf8
{[%clk 0:01:42.7]} 32. Rf6 {[%clk 0:01:46.7]} 32... Rxf6 {[%clk 0:01:33]} 33.
gxf6 {[%clk 0:01:46.8]} 33... Qh7 {[%clk 0:01:31.1]} 34. Kb3 {[%clk 0:01:40.8]}
34... Rd5 {[%clk 0:01:27]} 35. Kxb4 {[%clk 0:01:33.6]} 35... Qd7 {[%clk
0:01:24.4]} 36. Kc3 {[%clk 0:01:31]} 36... Qa4 {[%clk 0:01:06]} 37. b3 {[%clk
0:01:23.1]} 37... Qa1+ {[%clk 0:01:03.8]} 38. Kd3 {[%clk 0:01:21.8]} 38... c5
{[%clk 0:01:02.9]} 39. Qh6 {[%clk 0:01:14.9]} 39... Rxd4+ {[%clk 0:01:00.2]} 40.
Ke3 {[%clk 0:01:15.4]} 40... Qc1+ {[%clk 0:00:59.6]} 0-1

[Event "Early-Titled-Tuesday-Blitz-February-06-2024"]
[Site "Chess.com"]
[Date "2024.02.06"]
[Round "1"]
[White "LileKoridze"]
[Black "Martial2008"]
[Result "0-1"]
[WhiteElo "2360"]
[BlackElo "2674"]
[TimeControl "180+1"]
[EndTime "8:05:31 PST"]
[Termination "Martial2008 won by resignation"]

1. d4 {[%clk 0:03:00.9]} 1... Nf6 {[%clk 0:02:53.9]} 2. c4 {[%clk 0:03:01.4]}
2... e6 {[%clk 0:02:53.8]} 3. Nf3 {[%clk 0:03:01.9]} 3... d5 {[%clk 0:02:52.6]}
4. g3 {[%clk 0:03:02.3]} 4... Bb4+ {[%clk 0:02:51.1]} 5. Bd2 {[%clk 0:02:59.5]}
5... Be7 {[%clk 0:02:51]} 6. Bg2 {[%clk 0:02:59.3]} 6... O-O {[%clk 0:02:50.7]}
7. O-O {[%clk 0:02:59.7]} 7... Ne4 {[%clk 0:02:48.1]} 8. Nc3 {[%clk 0:02:59.6]}
8... Nxd2 {[%clk 0:02:40]} 9. Qxd2 {[%clk 0:02:59]} 9... c6 {[%clk 0:02:40.3]}
10. b3 {[%clk 0:02:58.2]} 10... f5 {[%clk 0:02:39.8]} 11. Ne5 {[%clk 0:02:58]}
11... Nd7 {[%clk 0:02:38.5]} 12. Nxd7 {[%clk 0:02:57.6]} 12... Bxd7 {[%clk
0:02:38.3]} 13. f3 {[%clk 0:02:58.2]} 13... Rc8 {[%clk 0:02:29.7]} 14. e4 {[%clk
0:02:57.4]} 14... c5 {[%clk 0:02:30]} 15. exd5 {[%clk 0:02:47.9]} 15... cxd4
{[%clk 0:02:29.2]} 16. dxe6 {[%clk 0:02:18.7]} 16... Bxe6 {[%clk 0:02:15.2]} 17.
Nb5 {[%clk 0:01:57.9]} 17... Bc5 {[%clk 0:02:06.6]} 18. Rad1 {[%clk 0:01:56.2]}
18... Qf6 {[%clk 0:02:00.3]} 19. Qa5 {[%clk 0:01:34.8]} 19... a6 {[%clk
0:01:37.2]} 20. Na3 {[%clk 0:01:28.6]} 20... b6 {[%clk 0:01:30]} 21. Qa4 {[%clk
0:01:27.7]} 21... b5 {[%clk 0:01:18]} 22. cxb5 {[%clk 0:01:27.5]} 22... axb5
{[%clk 0:01:18.2]} 23. Qxb5 {[%clk 0:01:14.2]} 23... Bxa3 {[%clk 0:01:17.4]} 24.
Rd2 {[%clk 0:01:11.8]} 24... Rc1 {[%clk 0:01:11]} 25. Qa6 {[%clk 0:01:07.7]}
25... Rxf1+ {[%clk 0:01:08]} 26. Bxf1 {[%clk 0:01:06.4]} 26... Bc1 {[%clk
0:01:04.1]} 27. Rd1 {[%clk 0:01:05.1]} 27... Be3+ {[%clk 0:01:03.4]} 28. Kh1
{[%clk 0:01:05.2]} 28... Bd5 {[%clk 0:01:03.1]} 29. Qe2 {[%clk 0:01:04.4]} 29...
f4 {[%clk 0:00:57.1]} 30. g4 {[%clk 0:01:04.1]} 30... Qc6 {[%clk 0:00:54.9]} 31.
Bg2 {[%clk 0:01:04.3]} 31... Rc8 {[%clk 0:00:55.4]} 32. Qd3 {[%clk 0:01:04.3]}
32... Bxf3 {[%clk 0:00:54.1]} 0-1

[Event "Early-Titled-Tuesday-Blitz-February-06-2024"]
[Site "Chess.com"]
[Date "2024.02.06"]
[Round "1"]
[White "severomorskij"]
[Black "Irishchessman16"]
[Result "1-0"]
[WhiteElo "2894"]
[BlackElo "2491"]
[TimeControl "180+1"]
[EndTime "8:05:32 PST"]
[Termination "severomorskij won by resignation"]

1. d4 {[%clk 0:03:00.9]} 1... Nf6 {[%clk 0:02:56.5]} 2. Bg5 {[%clk 0:03:00.4]}
2... c5 {[%clk 0:02:53.2]} 3. Nc3 {[%clk 0:02:59.7]} 3... cxd4 {[%clk
0:02:51.8]} 4. Qxd4 {[%clk 0:03:00.6]} 4... Nc6 {[%clk 0:02:51.6]} 5. Qh4 {[%clk
0:03:00.3]} 5... e6 {[%clk 0:02:39]} 6. O-O-O {[%clk 0:02:58.1]} 6... Be7 {[%clk
0:02:36.4]} 7. e4 {[%clk 0:02:56.9]} 7... h6 {[%clk 0:02:35.8]} 8. f4 {[%clk
0:02:57]} 8... O-O {[%clk 0:02:17.3]} 9. Nf3 {[%clk 0:02:56.4]} 9... hxg5 {[%clk
0:01:46.8]} 10. Nxg5 {[%clk 0:02:55.7]} 10... g6 {[%clk 0:01:46]} 11. e5 {[%clk
0:02:24.6]} 11... Nh5 {[%clk 0:01:41]} 12. g4 {[%clk 0:02:24.6]} 12... Nxe5
{[%clk 0:00:35.7]} 13. gxh5 {[%clk 0:02:18.7]} 13... Bxg5 {[%clk 0:00:24.8]} 14.
fxg5 {[%clk 0:02:17]} 14... Nf3 {[%clk 0:00:24.3]} 15. Qf2 {[%clk 0:02:12.2]}
15... Nxg5 {[%clk 0:00:19.5]} 16. Rg1 {[%clk 0:01:54]} 16... f5 {[%clk
0:00:09.2]} 17. hxg6 {[%clk 0:01:41.1]} 17... Ne4 {[%clk 0:00:05.3]} 18. Nxe4
{[%clk 0:01:31.8]} 18... fxe4 {[%clk 0:00:05.1]} 19. Qe3 {[%clk 0:01:30.7]}
19... Qb6 {[%clk 0:00:04.9]} 20. Qh6 {[%clk 0:01:25.4]} 1-0

[Event "Early-Titled-Tuesday-Blitz-February-06-2024"]
[Site "Chess.com"]
[Date "2024.02.06"]
[Round "1"]
[White "zsoltkorpics"]
[Black "gmcorrales"]
[Result "0-1"]
[WhiteElo "2472"]
[BlackElo "2866"]
[TimeControl "180+1"]
[EndTime "8:05:35 PST"]
[Termination "gmcorrales won by resignation"]

1. e4 {[%clk 0:03:00.9]} 1... c6 {[%clk 0:02:57.3]} 2. Nf3 {[%clk 0:02:58.3]}
2... d5 {[%clk 0:02:57]} 3. Nc3 {[%clk 0:02:58.7]} 3... g6 {[%clk 0:02:46.5]} 4.
d4 {[%clk 0:02:53.4]} 4... Bg7 {[%clk 0:02:40.4]} 5. h3 {[%clk 0:02:53.2]} 5...
a6 {[%clk 0:02:36.3]} 6. Be2 {[%clk 0:02:43.9]} 6... Nf6 {[%clk 0:02:29.1]} 7.
e5 {[%clk 0:02:39.9]} 7... Ne4 {[%clk 0:02:29.3]} 8. Bd3 {[%clk 0:02:32.6]} 8...
Nxc3 {[%clk 0:02:27.7]} 9. bxc3 {[%clk 0:02:33.5]} 9... c5 {[%clk 0:02:27.1]}
10. O-O {[%clk 0:02:31]} 10... Qa5 {[%clk 0:02:26.3]} 11. Bd2 {[%clk 0:02:29.4]}
11... c4 {[%clk 0:02:26.5]} 12. Be2 {[%clk 0:02:28.5]} 12... e6 {[%clk
0:02:23.4]} 13. Nh2 {[%clk 0:02:20]} 13... Nd7 {[%clk 0:02:19.7]} 14. f4 {[%clk
0:02:07.1]} 14... h5 {[%clk 0:02:17.1]} 15. Bf3 {[%clk 0:01:59.5]} 15... Nb6
{[%clk 0:02:16.8]} 16. Qe1 {[%clk 0:01:54.7]} 16... Na4 {[%clk 0:02:15.8]} 17.
g4 {[%clk 0:01:27.7]} 17... hxg4 {[%clk 0:02:15.1]} 18. hxg4 {[%clk 0:01:27.7]}
18... Bd7 {[%clk 0:02:14.7]} 19. Rf2 {[%clk 0:01:19.6]} 19... O-O-O {[%clk
0:02:14.5]} 20. Rb1 {[%clk 0:01:05.9]} 20... Rh7 {[%clk 0:02:13.8]} 21. Bg2
{[%clk 0:00:58.9]} 21... Bf8 {[%clk 0:02:08.7]} 22. Nf3 {[%clk 0:00:58.4]} 22...
Be7 {[%clk 0:02:09.2]} 23. Re2 {[%clk 0:00:56.5]} 23... Rdh8 {[%clk 0:02:07.5]}
24. Re3 {[%clk 0:00:54.9]} 24... Bh4 {[%clk 0:02:02.7]} 25. Qc1 {[%clk
0:00:51.3]} 25... Bg3 {[%clk 0:02:02.1]} 26. f5 {[%clk 0:00:41]} 26... gxf5
{[%clk 0:02:01]} 27. gxf5 {[%clk 0:00:41.4]} 27... Bf4 {[%clk 0:02:00]} 28. Re1
{[%clk 0:00:40.5]} 28... Bxd2 {[%clk 0:01:59.8]} 29. Qxd2 {[%clk 0:00:40.4]}
29... Qxc3 {[%clk 0:01:59.8]} 30. Qxc3 {[%clk 0:00:32.5]} 30... Nxc3 {[%clk
0:02:00.7]} 31. Rb2 {[%clk 0:00:27.1]} 31... Rg8 {[%clk 0:02:00.9]} 32. Kf1
{[%clk 0:00:19.9]} 32... Rhg7 {[%clk 0:01:56.9]} 33. Bh1 {[%clk 0:00:18.1]}
33... exf5 {[%clk 0:01:53.8]} 34. Kf2 {[%clk 0:00:15.7]} 34... f4 {[%clk
0:01:53]} 35. Rf1 {[%clk 0:00:15]} 35... Bh3 {[%clk 0:01:48.3]} 36. Rg1 {[%clk
0:00:13.9]} 36... Ne4+ {[%clk 0:01:48.1]} 0-1

[Event "Early-Titled-Tuesday-Blitz-February-06-2024"]
[Site "Chess.com"]
[Date "2024.02.06"]
[Round "1"]
[White "Arifarsky"]
[Black "Philosopherrr"]
[Result "1-0"]
[WhiteElo "2703"]
[BlackElo "2384"]
[TimeControl "180+1"]
[EndTime "8:05:35 PST"]
[Termination "Arifarsky won on time"]

1. Nf3 {[%clk 0:03:00.9]} 1... Nf6 {[%clk 0:02:58.6]} 2. c4 {[%clk 0:03:00.4]}
2... g6 {[%clk 0:02:58.2]} 3. g3 {[%clk 0:03:00.5]} 3... Bg7 {[%clk 0:02:57.7]}
4. Bg2 {[%clk 0:03:00.7]} 4... O-O {[%clk 0:02:57.1]} 5. O-O {[%clk 0:03:01.6]}
5... d5 {[%clk 0:02:57]} 6. cxd5 {[%clk 0:03:01.4]} 6... Nxd5 {[%clk 0:02:56.6]}
7. d4 {[%clk 0:03:01.4]} 7... Nc6 {[%clk 0:02:56.7]} 8. e4 {[%clk 0:02:52.2]}
8... Nb6 {[%clk 0:02:55.9]} 9. d5 {[%clk 0:02:47.1]} 9... Na5 {[%clk 0:02:55.5]}
10. Nc3 {[%clk 0:02:16.8]} 10... c6 {[%clk 0:02:54]} 11. dxc6 {[%clk 0:02:01.6]}
11... Nxc6 {[%clk 0:02:52.1]} 12. Qe2 {[%clk 0:01:48.7]} 12... e6 {[%clk
0:02:37.3]} 13. Be3 {[%clk 0:01:40.8]} 13... Qe7 {[%clk 0:02:35.5]} 14. Rac1
{[%clk 0:01:34]} 14... e5 {[%clk 0:02:35]} 15. Nd5 {[%clk 0:01:28.2]} 15... Nxd5
{[%clk 0:02:16.5]} 16. exd5 {[%clk 0:01:28.3]} 16... Nb4 {[%clk 0:02:14.2]} 17.
Bc5 {[%clk 0:01:26.4]} 1-0

[Event "Early-Titled-Tuesday-Blitz-February-06-2024"]
[Site "Chess.com"]
[Date "2024.02.06"]
[Round "1"]
[White "SereneSalmon"]
[Black "Arteler"]
[Result "1-0"]
[WhiteElo "2288"]
[BlackElo "2594"]
[TimeControl "180+1"]
[EndTime "8:05:36 PST"]
[Termination "SereneSalmon won on time"]

1. d4 {[%clk 0:03:00.9]} 1... Nf6 {[%clk 0:02:58.4]} 2. c4 {[%clk 0:03:00.6]}
2... g6 {[%clk 0:02:58.1]} 3. Nc3 {[%clk 0:03:00.5]} 3... Bg7 {[%clk 0:02:58.1]}
4. e4 {[%clk 0:03:00.6]} 4... d6 {[%clk 0:02:57.9]} 5. Nf3 {[%clk 0:03:00.9]}
5... O-O {[%clk 0:02:57.7]} 6. Be2 {[%clk 0:03:01.4]} 6... Re8 {[%clk
0:02:54.9]} 7. O-O {[%clk 0:03:00]} 7... e5 {[%clk 0:02:54]} 8. d5 {[%clk
0:03:00.4]} 8... Nbd7 {[%clk 0:02:48.9]} 9. Be3 {[%clk 0:02:58.6]} 9... h6
{[%clk 0:02:24.1]} 10. Nd2 {[%clk 0:02:56.9]} 10... b6 {[%clk 0:02:14.5]} 11. b4
{[%clk 0:02:54]} 11... a5 {[%clk 0:02:09.9]} 12. a3 {[%clk 0:02:50.2]} 12...
axb4 {[%clk 0:02:07.7]} 13. axb4 {[%clk 0:02:51.1]} 13... Bb7 {[%clk 0:02:07.7]}
14. Qc2 {[%clk 0:02:42.9]} 14... Qe7 {[%clk 0:02:01.4]} 15. Nb5 {[%clk
0:02:35.8]} 15... Nf8 {[%clk 0:01:41.1]} 16. c5 {[%clk 0:02:21.8]} 16... bxc5
{[%clk 0:01:07.4]} 17. bxc5 {[%clk 0:02:20.5]} 17... Rxa1 {[%clk 0:00:57.2]} 18.
Rxa1 {[%clk 0:02:21.4]} 18... Ra8 {[%clk 0:00:52.2]} 19. Rxa8 {[%clk 0:02:19.7]}
19... Bxa8 {[%clk 0:00:52.4]} 20. Qa4 {[%clk 0:02:20.3]} 20... Bb7 {[%clk
0:00:48.6]} 21. Qa7 {[%clk 0:02:17.3]} 21... Bc8 {[%clk 0:00:42.1]} 22. cxd6
{[%clk 0:02:12.7]} 22... Qd7 {[%clk 0:00:33.2]} 23. Qxc7 {[%clk 0:02:10.8]}
23... Qxc7 {[%clk 0:00:31.1]} 24. dxc7 {[%clk 0:02:11.7]} 24... g5 {[%clk
0:00:14.8]} 25. Na7 {[%clk 0:02:10.9]} 25... Bb7 {[%clk 0:00:11.7]} 26. c8=Q
{[%clk 0:02:06.6]} 26... Bxc8 {[%clk 0:00:09.5]} 27. Nxc8 {[%clk 0:02:07.5]}
27... N8d7 {[%clk 0:00:07.6]} 28. f3 {[%clk 0:02:05.9]} 28... Nh5 {[%clk
0:00:05.6]} 29. Nc4 {[%clk 0:02:04.1]} 29... Nf4 {[%clk 0:00:05.4]} 30. Bf1
{[%clk 0:02:02]} 30... Ng6 {[%clk 0:00:03.2]} 31. N8b6 {[%clk 0:01:59.2]} 31...
Nf4 {[%clk 0:00:04.1]} 32. Nxd7 {[%clk 0:01:58.2]} 1-0

[Event "Early-Titled-Tuesday-Blitz-February-06-2024"]
[Site "Chess.com"]
[Date "2024.02.06"]
[Round "1"]
[White "marsofsilva"]
[Black "Pingah9"]
[Result "0-1"]
[WhiteElo "1950"]
[BlackElo "2537"]
[TimeControl "180+1"]
[EndTime "8:05:37 PST"]
[Termination "Pingah9 won by resignation"]

1. d4 {[%clk 0:03:00.9]} 1... g6 {[%clk 0:02:59.3]} 2. c4 {[%clk 0:02:59.8]}
2... Bg7 {[%clk 0:02:59.2]} 3. Nc3 {[%clk 0:02:58.4]} 3... c5 {[%clk 0:02:59.4]}
4. Nf3 {[%clk 0:02:53.1]} 4... cxd4 {[%clk 0:02:45.7]} 5. Nxd4 {[%clk
0:02:52.6]} 5... Nc6 {[%clk 0:02:45.6]} 6. e3 {[%clk 0:02:44.8]} 6... Nf6 {[%clk
0:02:41.1]} 7. Be2 {[%clk 0:02:43.8]} 7... O-O {[%clk 0:02:39.9]} 8. O-O {[%clk
0:02:43.5]} 8... d6 {[%clk 0:02:39.9]} 9. Bf3 {[%clk 0:02:39.9]} 9... Ne5 {[%clk
0:02:40]} 10. Be2 {[%clk 0:02:35.4]} 10... Bd7 {[%clk 0:02:39]} 11. b3 {[%clk
0:02:28.4]} 11... Rc8 {[%clk 0:02:37.5]} 12. Bb2 {[%clk 0:02:28.1]} 12... Qa5
{[%clk 0:02:29.8]} 13. h3 {[%clk 0:02:14.9]} 13... a6 {[%clk 0:02:29.2]} 14. Rc1
{[%clk 0:01:48.5]} 14... Rfe8 {[%clk 0:02:23.3]} 15. Re1 {[%clk 0:01:44.9]}
15... h5 {[%clk 0:02:11.5]} 16. Bf1 {[%clk 0:01:39.3]} 16... Nc6 {[%clk
0:01:47.8]} 17. a3 {[%clk 0:00:58.7]} 17... h4 {[%clk 0:01:40.7]} 18. b4 {[%clk
0:00:58.1]} 18... Qg5 {[%clk 0:01:40.2]} 19. Nf3 {[%clk 0:00:55.2]} 19... Qh6
{[%clk 0:01:35.8]} 20. Nd5 {[%clk 0:00:51.2]} 20... Nxd5 {[%clk 0:01:29.8]} 21.
Bxg7 {[%clk 0:00:50.8]} 21... Qxg7 {[%clk 0:01:28.4]} 22. cxd5 {[%clk 0:00:51]}
22... Ne5 {[%clk 0:01:22.1]} 23. Nxh4 {[%clk 0:00:48.5]} 23... g5 {[%clk
0:01:19.3]} 24. Nf3 {[%clk 0:00:47.7]} 24... Rxc1 {[%clk 0:01:19.3]} 25. Qxc1
{[%clk 0:00:46.6]} 25... Nxf3+ {[%clk 0:01:20.2]} 26. gxf3 {[%clk 0:00:47.1]}
26... Rc8 {[%clk 0:01:16]} 27. Qd2 {[%clk 0:00:47]} 27... Qc3 {[%clk 0:01:12.5]}
28. Qxc3 {[%clk 0:00:41.7]} 28... Rxc3 {[%clk 0:01:13.4]} 29. a4 {[%clk
0:00:42.1]} 29... Bxa4 {[%clk 0:01:08.5]} 30. Rd1 {[%clk 0:00:41.1]} 30... Bxd1
{[%clk 0:01:07.1]} 0-1

[Event "Early-Titled-Tuesday-Blitz-February-06-2024"]
[Site "Chess.com"]
[Date "2024.02.06"]
[Round "1"]
[White "Zurability"]
[Black "Licancabur"]
[Result "1-0"]
[WhiteElo "2760"]
[BlackElo "2422"]
[TimeControl "180+1"]
[EndTime "8:05:38 PST"]
[Termination "Zurability won on time"]

1. Nf3 {[%clk 0:03:00.9]} 1... d5 {[%clk 0:02:58.4]} 2. g3 {[%clk 0:02:51.4]}
2... Nf6 {[%clk 0:02:57]} 3. Bg2 {[%clk 0:02:51.6]} 3... c6 {[%clk 0:02:50]} 4.
O-O {[%clk 0:02:51.2]} 4... Bg4 {[%clk 0:02:49]} 5. d3 {[%clk 0:02:50.9]} 5...
Nbd7 {[%clk 0:02:39.1]} 6. Nbd2 {[%clk 0:02:50.8]} 6... e5 {[%clk 0:02:27.1]} 7.
e4 {[%clk 0:02:49.2]} 7... Bd6 {[%clk 0:02:23.7]} 8. h3 {[%clk 0:02:48.2]} 8...
Bh5 {[%clk 0:02:17.7]} 9. exd5 {[%clk 0:02:48.2]} 9... cxd5 {[%clk 0:02:16.3]}
10. c4 {[%clk 0:02:47.6]} 10... O-O {[%clk 0:02:07.4]} 11. cxd5 {[%clk 0:02:47]}
11... Nxd5 {[%clk 0:01:55.3]} 12. Qb3 {[%clk 0:02:42.7]} 12... N5b6 {[%clk
0:01:27.3]} 13. Ne4 {[%clk 0:02:34.9]} 13... Be7 {[%clk 0:01:07.9]} 14. a4
{[%clk 0:02:31.7]} 14... Rb8 {[%clk 0:00:40.6]} 15. a5 {[%clk 0:02:03]} 15...
Nc8 {[%clk 0:00:37.7]} 16. d4 {[%clk 0:01:47.5]} 16... Bxf3 {[%clk 0:00:34.1]}
17. Bxf3 {[%clk 0:01:40.6]} 17... exd4 {[%clk 0:00:34.2]} 18. Bf4 {[%clk
0:01:40.5]} 18... Ra8 {[%clk 0:00:11.5]} 19. Qxb7 {[%clk 0:01:39.2]} 19... g5
{[%clk 0:00:07]} 20. Bc7 {[%clk 0:01:29.6]} 20... Qe8 {[%clk 0:00:04]} 21. Qxa8
{[%clk 0:01:27]} 1-0

[Event "Early-Titled-Tuesday-Blitz-February-06-2024"]
[Site "Chess.com"]
[Date "2024.02.06"]
[Round "1"]
[White "xakevicius91"]
[Black "aranibos"]
[Result "1-0"]
[WhiteElo "2605"]
[BlackElo "2260"]
[TimeControl "180+1"]
[EndTime "8:05:39 PST"]
[Termination "xakevicius91 won by resignation"]

1. e4 {[%clk 0:03:00.9]} 1... c6 {[%clk 0:02:59.6]} 2. d4 {[%clk 0:02:56.4]}
2... d5 {[%clk 0:02:59.9]} 3. e5 {[%clk 0:02:56]} 3... c5 {[%clk 0:02:58.9]} 4.
Nf3 {[%clk 0:02:55.2]} 4... Bg4 {[%clk 0:02:48.9]} 5. dxc5 {[%clk 0:02:54.3]}
5... Bxf3 {[%clk 0:02:46.2]} 6. Qxf3 {[%clk 0:02:53.4]} 6... e6 {[%clk
0:02:46.7]} 7. Be3 {[%clk 0:02:51.8]} 7... Qc7 {[%clk 0:02:46.6]} 8. Bb5+ {[%clk
0:02:43.5]} 8... Nc6 {[%clk 0:02:30.9]} 9. O-O {[%clk 0:02:34]} 9... Ne7 {[%clk
0:02:24.9]} 10. c4 {[%clk 0:02:21.2]} 10... Qxe5 {[%clk 0:02:11.5]} 11. Nc3
{[%clk 0:02:01.6]} 11... d4 {[%clk 0:01:37.9]} 12. Bf4 {[%clk 0:02:00.8]} 12...
Qxc5 {[%clk 0:01:36.3]} 13. Ne4 {[%clk 0:01:59.8]} 13... Qb6 {[%clk 0:01:25.2]}
14. Nd6+ {[%clk 0:01:56.9]} 14... Kd7 {[%clk 0:01:25.7]} 15. Nxf7 {[%clk
0:01:56.4]} 15... Rg8 {[%clk 0:01:20.6]} 16. Rad1 {[%clk 0:01:47.4]} 16... a6
{[%clk 0:01:06.4]} 17. Ba4 {[%clk 0:01:46.2]} 17... Qa5 {[%clk 0:01:03.4]} 18.
Rxd4+ {[%clk 0:01:40.8]} 18... Kc8 {[%clk 0:00:46.7]} 19. Nd6+ {[%clk
0:01:36.7]} 19... Kb8 {[%clk 0:00:44]} 20. Nxb7+ {[%clk 0:00:54.5]} 20... Kxb7
{[%clk 0:00:42.8]} 21. Rd7+ {[%clk 0:00:55.1]} 21... Kc8 {[%clk 0:00:42.6]} 22.
Bxc6 {[%clk 0:00:55]} 1-0

[Event "Early-Titled-Tuesday-Blitz-February-06-2024"]
[Site "Chess.com"]
[Date "2024.02.06"]
[Round "1"]
[White "AniJak"]
[Black "Aradhya2000"]
[Result "0-1"]
[WhiteElo "2377"]
[BlackElo "2692"]
[TimeControl "180+1"]
[EndTime "8:05:40 PST"]
[Termination "Aradhya2000 won by resignation"]

1. e4 {[%clk 0:03:00.9]} 1... e5 {[%clk 0:02:59.8]} 2. Nf3 {[%clk 0:02:59.7]}
2... Nc6 {[%clk 0:02:59.9]} 3. Bc4 {[%clk 0:02:58.1]} 3... Nf6 {[%clk
0:02:59.5]} 4. d3 {[%clk 0:02:44.9]} 4... Bc5 {[%clk 0:02:58.9]} 5. O-O {[%clk
0:02:43.6]} 5... d6 {[%clk 0:02:53.8]} 6. h3 {[%clk 0:02:43]} 6... h6 {[%clk
0:02:50.8]} 7. c3 {[%clk 0:02:42.2]} 7... Bb6 {[%clk 0:02:45.7]} 8. d4 {[%clk
0:02:35.6]} 8... Qe7 {[%clk 0:02:45]} 9. Re1 {[%clk 0:02:20]} 9... g5 {[%clk
0:02:43.8]} 10. dxe5 {[%clk 0:01:58.4]} 10... Nxe5 {[%clk 0:02:41.4]} 11. Nxe5
{[%clk 0:01:56.5]} 11... dxe5 {[%clk 0:02:41.5]} 12. Be3 {[%clk 0:01:51.6]}
12... Bxe3 {[%clk 0:01:58.7]} 13. Rxe3 {[%clk 0:01:52.5]} 13... g4 {[%clk
0:01:59]} 14. h4 {[%clk 0:01:49.6]} 14... Be6 {[%clk 0:01:56.9]} 15. Bxe6 {[%clk
0:01:38.8]} 15... Qxe6 {[%clk 0:01:56.8]} 16. Qb3 {[%clk 0:01:37.8]} 16... Qxb3
{[%clk 0:01:38.2]} 17. axb3 {[%clk 0:01:38.7]} 17... O-O-O {[%clk 0:01:38.3]}
18. Re1 {[%clk 0:01:16.4]} 18... Rd3 {[%clk 0:01:23.1]} 19. Rxa7 {[%clk
0:01:12.8]} 19... Kb8 {[%clk 0:01:19.8]} 20. Ra1 {[%clk 0:01:07.9]} 20... g3
{[%clk 0:01:16.7]} 21. fxg3 {[%clk 0:01:03.4]} 21... Rg8 {[%clk 0:01:16.1]} 22.
Na3 {[%clk 0:00:56.4]} 22... Rdxg3 {[%clk 0:01:12.6]} 23. Re2 {[%clk 0:00:56.4]}
23... Nh5 {[%clk 0:01:12.7]} 24. Nc4 {[%clk 0:00:32.9]} 24... Nf4 {[%clk
0:01:12.2]} 25. Rf2 {[%clk 0:00:30.1]} 25... Nh3+ {[%clk 0:01:11.7]} 26. Kf1
{[%clk 0:00:29.3]} 26... Nxf2 {[%clk 0:01:12.6]} 27. Kxf2 {[%clk 0:00:29.6]}
27... Rxg2+ {[%clk 0:01:13]} 0-1